[Event "Asian Zonal-ch 3.5 Women 2019"]
[Site "Zi Bo"]
[Date "2019.09.05"]
[Round "1.8"]
[White "Li, Yunshan"]
[Black "Cai Youyang"]
[Result "1-0"]
[ECO "D34"]
[WhiteElo "2261"]
[BlackElo "1910"]
[Annotator "ChessBase"]
[PlyCount "123"]
[EventDate "2019.09.05"]
[EventType "swiss"]
[EventCountry "CHN"]
[SourceTitle "playchess.com"]
[Source "ChessBase"]
[SourceQuality "1"]
[TimeControl "5400+30"]

1. d4 {[%emt 0:00:00]} d5 {[%emt 0:00:00]} 2. c4 {[%emt 0:00:00]} e6 {[%emt 0:00:00]} 3. Nf3 {[%emt 0:00:32]} Nf6 {[%emt 0:00:04]} 4. g3 {[%emt 0:00:09]} c5 {[%emt 0:02:14]} 5. cxd5 {[%emt 0:00:59]} exd5 {[%emt 0:00:46]} 6. Nc3 {[%emt 0:00:37]} Nc6 {[%emt 0:02:57]} 7. Bg2 {[%emt 0:00:20]} Be7 {[%emt 0:05:47]} 8. O-O {[%emt 0:01:48]} O-O {[%emt 0:01:31]} 9. dxc5 {[%emt 0:13:44]} Bxc5 {[%emt 0:02:46]} 10. Bg5 {[%emt 0:08:23]} Be6 {[%emt 0:02:53]} 11. Rc1 {[%emt 0:04:21]} Be7 {[%emt 0:01:25]} 12. Nd4 {[%emt 0:04:35]} h6 {[%emt 0:05:44]} 13. Bf4 {[%emt 0:10:57]} Rc8 {[%emt 0:07:59]} 14. Ncb5 {[%emt 0:04:19]} Qd7 {[%emt 0:02:55]} 15. Nxe6 {[%emt 0:05:08]} fxe6 {[%emt 0:00:13]} 16. Bh3 {[%emt 0:00:49]} Ne4 {[%emt 0:11:08]} 17. Nc3 {[%emt 0:05:24]} Nxc3 {[%emt 0:00:43]} 18. bxc3 {[%emt 0:03:14]} Ba3 {[%emt 0:07:26]} 19. Rc2 {[%emt 0:01:08]} Qf7 {[%emt 0:00:58]} 20. e4 {[%emt 0:02:14]} Rcd8 {[%emt 0:00:31]} 21. Rd2 {[%emt 0:03:44]} dxe4 {[%emt 0:17:16]} 22. Qb3 {[%emt 0:02:25]} Qg6 {[%emt 0:05:39]} 23. Rxd8 {[%emt 0:04:17]} Nxd8 {[%emt 0:00:04]} 24. Qxa3 {[%emt 0:00:46]} Rxf4 {[%emt 0:00:05]} 25. Qxa7 {[%emt 0:00:41]} Rf8 {[%emt 0:00:03]} 26. Bg2 {[%emt 0:03:10]} Qf5 {[%emt 0:05:37]} 27. Qd4 {[%emt 0:01:07]} Qa5 {[%emt 0:00:05]} 28. a4 {[%emt 0:01:24]} Nc6 {[%emt 0:02:31]} 29. Qc4 {[%emt 0:07:34]} Qd5 {[%emt 0:05:08]} 30. Qxe4 {[%emt 0:00:49]} Qb3 {[%emt 0:00:38]} 31. h4 {[%emt 0:03:39]} Qxc3 {[%emt 0:02:14]} 32. Qxe6+ {[%emt 0:00:11]} Kh8 {[%emt 0:00:01]} 33. Qd7 {[%emt 0:01:12]} Nd4 {[%emt 0:01:13]} 34. Qxb7 {[%emt 0:01:04]} Ne2+ {[%emt 0:00:02]} 35. Kh2 {[%emt 0:02:05]} Qd4 {[%emt 0:01:57]} 36. Qe4 {[%emt 0:01:14]} Qd2 {[%emt 0:01:03]} 37. Qe3 {[%emt 0:00:48]} Qc2 {[%emt 0:00:21]} 38. a5 {[%emt 0:01:13]} Qc4 {[%emt 0:00:03]} 39. Re1 {[%emt 0:01:05]} Nd4 {[%emt 0:00:18]} 40. Rd1 {[%emt 0:00:32]} Nf5 {[%emt 0:00:45]} 41. Qa3 {[%emt 0:00:39]} Rf6 {[%emt 0:00:12]} 42. Rd8+ {[%emt 0:00:45]} Kh7 {[%emt 0:00:01]} 43. Qd3 {[%emt 0:00:19]} Qc5 {[%emt 0:00:08]} 44. g4 {[%emt 0:01:20]} Qxf2 {[%emt 0:00:20]} 45. gxf5 {[%emt 0:00:14]} Qxh4+ {[%emt 0:00:03]} 46. Qh3 {[%emt 0:00:33]} Qe1 {[%emt 0:03:21]} 47. Qg3 {[%emt 0:00:58]} Qe7 {[%emt 0:00:46]} 48. Rd5 {[%emt 0:00:21]} Qf7 {[%emt 0:00:31]} 49. Qd3 {[%emt 0:00:53]} Qc7+ {[%emt 0:00:22]} 50. Kg1 {[%emt 0:00:38]} Qc1+ {[%emt 0:00:08]} 51. Kf2 {[%emt 0:00:26]} Qf4+ {[%emt 0:00:25]} 52. Bf3 {[%emt 0:00:35]} Qh4+ {[%emt 0:00:13]} 53. Ke3 {[%emt 0:00:20]} Qe1+ {[%emt 0:00:06]} 54. Qe2 {[%emt 0:00:42]} Qg1+ {[%emt 0:00:01]} 55. Qf2 {[%emt 0:00:20]} Qc1+ {[%emt 0:00:09]} 56. Kd3 {[%emt 0:00:22]} Qa3+ {[%emt 0:00:02]} 57. Ke2 {[%emt 0:00:19]} Qb2+ {[%emt 0:00:11]} 58. Kf1 {[%emt 0:00:11]} Qc1+ {[%emt 0:00:19]} 59. Kg2 {[%emt 0:00:25]} Qg5+ {[%emt 0:02:51]} 60. Qg3 {[%emt 0:00:04]} Qc1 {[%emt 0:00:04]} 61. Be4 {[%emt 0:01:16]} Qc4 {[%emt 0:00:20]} 62. Qg6+ {[%emt 0:00:40]} 1-0

[Event "Asian Zonal-ch 3.5 Women 2019"]
[Site "Zi Bo"]
[Date "2019.09.05"]
[Round "1.9"]
[White "Xue, Yue"]
[Black "Gu, Tianlu"]
[Result "0-1"]
[ECO "C90"]
[WhiteElo "1678"]
[BlackElo "2239"]
[Annotator "ChessBase"]
[PlyCount "76"]
[EventDate "2019.09.05"]
[EventType "swiss"]
[EventCountry "CHN"]
[SourceTitle "playchess.com"]
[Source "ChessBase"]
[SourceQuality "1"]
[TimeControl "5400+30"]

1. e4 {[%emt 0:00:00]} e5 {[%emt 0:00:00]} 2. Nf3 {[%emt 0:00:00]} Nc6 {[%emt 0:00:00]} 3. Bb5 {[%emt 0:00:04]} a6 {[%emt 0:00:00]} 4. Ba4 {[%emt 0:00:07]} Nf6 {[%emt 0:00:25]} 5. d3 {[%emt 0:00:58]} b5 {[%emt 0:00:36]} 6. Bb3 {[%emt 0:00:05]} Be7 {[%emt 0:00:33]} 7. Nbd2 {[%emt 0:02:41]} d6 {[%emt 0:00:44]} 8. c3 {[%emt 0:00:06]} O-O {[%emt 0:00:44]} 9. O-O {[%emt 0:04:18]} Na5 {[%emt 0:01:05]} 10. Bc2 {[%emt 0:00:02]} c5 {[%emt 0:00:18]} 11. Re1 {[%emt 0:01:02]} Re8 {[%emt 0:00:48]} 12. Nf1 {[%emt 0:02:40]} Nc6 {[%emt 0:04:17]} 13. h3 {[%emt 0:03:39]} Bf8 {[%emt 0:00:53]} 14. d4 {[%emt 0:06:35]} cxd4 {[%emt 0:09:27]} 15. cxd4 {[%emt 0:00:02]} Bd7 {[%emt 0:02:11]} 16. Bg5 {[%emt 0:17:35]} h6 {[%emt 0:04:55]} 17. Be3 {[%emt 0:15:16]} Rc8 {[%emt 0:08:43]} 18. Ng3 {[%emt 0:12:03]} g6 {[%emt 0:08:25]} 19. Qd2 {[%emt 0:06:34]} d5 {[%emt 0:09:39]} 20. exd5 {[%emt 0:05:13]} Bb4 {[%emt 0:01:05]} 21. Qd1 {[%emt 0:02:06]} Nxd4 {[%emt 0:03:16]} 22. Bxd4 {[%emt 0:02:06]} Bxe1 {[%emt 0:00:29]} 23. Bxe5 {[%emt 0:03:46]} Bb4 {[%emt 0:01:36]} 24. Bb3 {[%emt 0:03:59]} Bc5 {[%emt 0:06:20]} 25. Qd2 {[%emt 0:03:33]} Bf8 {[%emt 0:06:50]} 26. Qd4 {[%emt 0:03:46]} Bg7 {[%emt 0:00:14]} 27. Rd1 {[%emt 0:02:42]} a5 {[%emt 0:04:59]} 28. a3 {[%emt 0:00:43]} a4 {[%emt 0:00:17]} 29. Ba2 {[%emt 0:00:01]} Rc2 {[%emt 0:00:44]} 30. Ne1 {[%emt 0:01:39]} Rxf2 {[%emt 0:11:03]} 31. Qxf2 {[%emt 0:01:04]} Rxe5 {[%emt 0:00:05]} 32. Nf3 {[%emt 0:00:17]} Re8 {[%emt 0:01:57]} 33. Qc5 {[%emt 0:00:50]} Ne4 {[%emt 0:02:25]} 34. Nxe4 {[%emt 0:00:01]} Rxe4 {[%emt 0:00:07]} 35. Rd2 {[%emt 0:00:38]} Qe8 {[%emt 0:02:27]} 36. Kf2 {[%emt 0:00:54]} h5 {[%emt 0:00:50]} 37. Qc2 {[%emt 0:01:08]} Bh6 {[%emt 0:00:13]} 38. Re2 {[%emt 0:00:02]} Be3+ {[%emt 0:00:02] Rd2 Bh6} 0-1

[Event "Asian Zonal-ch 3.5 Women 2019"]
[Site "Zi Bo"]
[Date "2019.09.05"]
[Round "1.10"]
[White "Ren, Xiaoyi"]
[Black "Wang, Yuehan"]
[Result "1/2-1/2"]
[ECO "E10"]
[WhiteElo "2231"]
[BlackElo "1600"]
[Annotator "ChessBase"]
[PlyCount "175"]
[EventDate "2019.09.05"]
[EventType "swiss"]
[EventCountry "CHN"]
[SourceTitle "playchess.com"]
[Source "ChessBase"]
[SourceQuality "1"]
[TimeControl "5400+30"]

1. d4 {[%emt 0:00:00]} Nf6 {[%emt 0:00:00]} 2. c4 {[%emt 0:00:00]} e6 {[%emt 0:00:00]} 3. Nf3 {[%emt 0:00:00]} c6 {[%emt 0:00:10]} 4. Bf4 {[%emt 0:02:46]} Qa5+ {[%emt 0:12:38]} 5. Nbd2 {[%emt 0:00:59]} d5 {[%emt 0:00:31]} 6. e3 {[%emt 0:00:43]} Nbd7 {[%emt 0:07:47]} 7. a3 {[%emt 0:00:43]} dxc4 {[%emt 0:09:56]} 8. Bxc4 {[%emt 0:00:07]} Be7 {[%emt 0:04:32]} 9. h3 {[%emt 0:01:46]} O-O {[%emt 0:02:34]} 10. b4 {[%emt 0:00:55]} Qd8 {[%emt 0:01:47]} 11. Nb3 {[%emt 0:00:08]} b6 {[%emt 0:00:17]} 12. O-O {[%emt 0:00:13]} c5 {[%emt 0:00:15]} 13. b5 {[%emt 0:01:37]} Bb7 {[%emt 0:00:45]} 14. Qe2 {[%emt 0:01:34]} Ne4 {[%emt 0:04:20]} 15. a4 {[%emt 0:02:27]} Bf6 {[%emt 0:01:18]} 16. Rfc1 {[%emt 0:03:14]} Bd5 {[%emt 0:02:48]} 17. a5 {[%emt 0:04:50]} Qe7 {[%emt 0:08:16]} 18. Ne5 {[%emt 0:09:03]} cxd4 {[%emt 0:04:56]} 19. Bxd5 {[%emt 0:10:44]} exd5 {[%emt 0:06:43]} 20. Nc6 {[%emt 0:00:32]} Qe6 {[%emt 0:00:49]} 21. exd4 {[%emt 0:00:22]} Rfc8 {[%emt 0:05:07]} 22. Rc2 {[%emt 0:02:00]} Qf5 {[%emt 0:01:45]} 23. Qg4 {[%emt 0:03:43]} Nd6 {[%emt 0:02:45]} 24. Rac1 {[%emt 0:06:38]} Qxg4 {[%emt 0:05:17]} 25. hxg4 {[%emt 0:00:08]} Nc4 {[%emt 0:00:18]} 26. Nd2 {[%emt 0:00:05]} bxa5 {[%emt 0:02:51]} 27. g5 {[%emt 0:04:10]} Bd8 {[%emt 0:00:27]} 28. Nxc4 {[%emt 0:00:05]} dxc4 {[%emt 0:00:12]} 29. Rxc4 {[%emt 0:00:07]} Nb6 {[%emt 0:00:25]} 30. Rc5 {[%emt 0:01:26]} a4 {[%emt 0:00:54]} 31. d5 {[%emt 0:03:01]} f6 {[%emt 0:01:44]} 32. d6 {[%emt 0:01:35]} Kf8 {[%emt 0:02:24]} 33. Nxd8 {[%emt 0:01:56]} Rxd8 {[%emt 0:00:12]} 34. gxf6 {[%emt 0:00:03]} gxf6 {[%emt 0:00:09]} 35. Rc7 {[%emt 0:03:09]} Rd7 {[%emt 0:00:26]} 36. R7c6 {[%emt 0:01:05]} Nd5 {[%emt 0:01:39]} 37. Bh6+ {[%emt 0:02:17]} Kf7 {[%emt 0:00:53]} 38. Ra6 {[%emt 0:00:07]} Nb6 {[%emt 0:00:30]} 39. Rc6 {[%emt 0:00:41]} Rad8 {[%emt 0:01:43]} 40. Be3 {[%emt 0:00:40]} Nc8 {[%emt 0:01:33]} 41. Bc5 {[%emt 0:02:18]} Rb7 {[%emt 0:01:24]} 42. Rxa4 {[%emt 0:02:39]} Rxb5 {[%emt 0:00:45]} 43. Rc7+ {[%emt 0:00:55]} Ke6 {[%emt 0:00:45]} 44. Re4+ {[%emt 0:00:09]} Kd5 {[%emt 0:00:32]} 45. Rd4+ {[%emt 0:00:06]} Ke6 {[%emt 0:00:09]} 46. d7 {[%emt 0:00:18]} Nb6 {[%emt 0:00:10]} 47. Rd6+ {[%emt 0:03:00]} Ke5 {[%emt 0:00:47]} 48. Rd2 {[%emt 0:05:43]} Rxd7 {[%emt 0:01:39]} 49. Re2+ {[%emt 0:00:10]} Kf5 {[%emt 0:00:39]} 50. Rxd7 {[%emt 0:00:22]} Nxd7 {[%emt 0:00:05]} 51. Bxa7 {[%emt 0:00:02]} Rb1+ {[%emt 0:00:27]} 52. Kh2 {[%emt 0:00:04]} Kg6 {[%emt 0:00:03]} 53. Re7 {[%emt 0:00:16]} Ne5 {[%emt 0:00:15]} 54. Re6 {[%emt 0:00:38]} Rb7 {[%emt 0:00:53]} 55. Bd4 {[%emt 0:00:08]} Kf5 {[%emt 0:00:07]} 56. Ra6 {[%emt 0:00:09]} Rd7 {[%emt 0:00:29]} 57. Bb2 {[%emt 0:00:37]} Rd2 {[%emt 0:00:44]} 58. Bxe5 {[%emt 0:00:14]} Kxe5 {[%emt 0:00:14]} 59. Kg3 {[%emt 0:00:05]} Kf5 {[%emt 0:00:05]} 60. f3 {[%emt 0:00:11]} Rd4 {[%emt 0:00:16]} 61. Ra7 {[%emt 0:00:17]} Kg6 {[%emt 0:00:24]} 62. Ra8 {[%emt 0:00:09]} Rb4 {[%emt 0:00:14]} 63. Rg8+ {[%emt 0:00:04]} Kf7 {[%emt 0:00:09]} 64. Rg4 {[%emt 0:00:03]} Rb2 {[%emt 0:00:19]} 65. Kh4 {[%emt 0:00:31]} Rb5 {[%emt 0:00:07]} 66. Rc4 {[%emt 0:00:10]} Kg6 {[%emt 0:00:13]} 67. f4 {[%emt 0:00:32]} Rb1 {[%emt 0:00:47]} 68. Rc5 {[%emt 0:01:07]} Rb4 {[%emt 0:00:17]} 69. Kg4 {[%emt 0:00:24]} Ra4 {[%emt 0:00:10]} 70. g3 {[%emt 0:00:12]} Rb4 {[%emt 0:00:26]} 71. Rc8 {[%emt 0:00:09]} Rb5 {[%emt 0:00:31]} 72. Rg8+ {[%emt 0:01:05]} Kf7 {[%emt 0:00:07]} 73. Rd8 {[%emt 0:00:14]} Kg6 {[%emt 0:00:05]} 74. Rd3 {[%emt 0:00:11]} Ra5 {[%emt 0:00:14]} 75. Rd4 {[%emt 0:00:15]} Rb5 {[%emt 0:00:05]} 76. Kh4 {[%emt 0:00:07]} Rh5+ {[%emt 0:00:06]} 77. Kg4 {[%emt 0:00:01]} Rb5 {[%emt 0:00:09]} 78. Rd3 {[%emt 0:00:21]} Ra5 {[%emt 0:00:06]} 79. Kf3 {[%emt 0:00:03]} Ra4 {[%emt 0:01:08]} 80. Rd5 {[%emt 0:00:26]} Ra3+ {[%emt 0:00:07]} 81. Kg4 {[%emt 0:00:21]} Ra4 {[%emt 0:00:09]} 82. Rd3 {[%emt 0:00:09]} Ra5 {[%emt 0:00:40]} 83. Kf3 {[%emt 0:00:03]} Ra4 {[%emt 0:00:05]} 84. Rd8 {[%emt 0:01:03]} Ra3+ {[%emt 0:00:15]} 85. Ke4 {[%emt 0:00:18]} Ra4+ {[%emt 0:00:50]} 86. Kf3 {[%emt 0:00:47]} Ra3+ {[%emt 0:00:05]} 87. Kg4 {[%emt 0:00:04]} Ra5 {[%emt 0:00:05]} 88. Rd4 {[%emt 0:00:05]} 1/2-1/2

[Event "Asian Zonal-ch 3.5 Women 2019"]
[Site "Zi Bo"]
[Date "2019.09.05"]
[Round "1.11"]
[White "Ha, Yihan"]
[Black "Zhang, Lanlin"]
[Result "0-1"]
[ECO "D36"]
[WhiteElo "1580"]
[BlackElo "2203"]
[Annotator "ChessBase"]
[PlyCount "78"]
[EventDate "2019.09.05"]
[EventType "swiss"]
[EventCountry "CHN"]
[SourceTitle "playchess.com"]
[Source "ChessBase"]
[SourceQuality "1"]
[TimeControl "5400+30"]

1. d4 {[%emt 0:00:00]} d5 {[%emt 0:01:40]} 2. c4 {[%emt 0:00:00]} e6 {[%emt 0:00:03]} 3. Nc3 {[%emt 0:00:00]} Nf6 {[%emt 0:00:05]} 4. cxd5 {[%emt 0:00:00]} exd5 {[%emt 0:00:02]} 5. Bg5 {[%emt 0:00:00]} c6 {[%emt 0:00:30]} 6. e3 {[%emt 0:00:05]} h6 {[%emt 0:05:35]} 7. Bh4 {[%emt 0:01:20]} Be7 {[%emt 0:05:10]} 8. Bd3 {[%emt 0:00:15]} O-O {[%emt 0:02:16]} 9. Qc2 {[%emt 0:01:28]} Be6 {[%emt 0:06:22]} 10. Nge2 {[%emt 0:00:46]} Nh5 {[%emt 0:03:33]} 11. Bxe7 {[%emt 0:00:34]} Qxe7 {[%emt 0:00:03]} 12. h3 {[%emt 0:01:55]} a5 {[%emt 0:02:04]} 13. g4 {[%emt 0:00:49]} Nf6 {[%emt 0:00:02]} 14. O-O-O {[%emt 0:02:23]} Na6 {[%emt 0:00:12]} 15. Qd2 {[%emt 0:08:47]} a4 {[%emt 0:09:07]} 16. Rdg1 {[%emt 0:11:46]} b5 {[%emt 0:02:24]} 17. f3 {[%emt 0:06:19]} a3 {[%emt 0:01:19]} 18. b3 {[%emt 0:00:21]} b4 {[%emt 0:00:06]} 19. Na4 {[%emt 0:01:10]} Nd7 {[%emt 0:00:48]} 20. f4 {[%emt 0:05:58]} f5 {[%emt 0:00:45]} 21. gxf5 {[%emt 0:08:19]} Bxf5 {[%emt 0:00:16]} 22. Ng3 {[%emt 0:00:22]} Bxd3 {[%emt 0:00:54]} 23. Qxd3 {[%emt 0:00:07]} Rf7 {[%emt 0:00:18]} 24. Rg2 {[%emt 0:01:54]} Ra7 {[%emt 0:14:16]} 25. Rhg1 {[%emt 0:01:12]} Nf8 {[%emt 0:00:08]} 26. Kd2 {[%emt 0:05:18]} c5 {[%emt 0:09:08]} 27. dxc5 {[%emt 0:08:38]} Nxc5 {[%emt 0:00:04]} 28. Nxc5 {[%emt 0:00:35]} Qxc5 {[%emt 0:00:03]} 29. Nf5 {[%emt 0:01:05]} Qc3+ {[%emt 0:00:05]} 30. Qxc3 {[%emt 0:00:55]} bxc3+ {[%emt 0:00:12]} 31. Kxc3 {[%emt 0:00:04]} Rxf5 {[%emt 0:00:02]} 32. Kd3 {[%emt 0:01:02]} Ne6 {[%emt 0:01:09]} 33. Rc1 {[%emt 0:01:29]} d4 {[%emt 0:04:47]} 34. Rf2 {[%emt 0:04:43]} dxe3 {[%emt 0:01:02]} 35. Kxe3 {[%emt 0:00:09]} Re7 {[%emt 0:00:03]} 36. Ke4 {[%emt 0:04:34]} Rf8 {[%emt 0:00:05]} 37. f5 {[%emt 0:07:46]} Nc5+ {[%emt 0:00:17]} 38. Kd4 {[%emt 0:00:17]} Rd8+ {[%emt 0:00:04]} 39. Kc4 {[%emt 0:00:28]} Nd3 {[%emt 0:00:06] Kd4} 0-1

[Event "Asian Zonal-ch 3.5 Women 2019"]
[Site "Zi Bo"]
[Date "2019.09.05"]
[Round "1.12"]
[White "Zhao, Shengxin"]
[Black "Zhao, Caidi"]
[Result "1-0"]
[ECO "D73"]
[WhiteElo "2162"]
[BlackElo "1540"]
[Annotator "ChessBase"]
[PlyCount "87"]
[EventDate "2019.09.05"]
[EventType "swiss"]
[EventCountry "CHN"]
[SourceTitle "playchess.com"]
[Source "ChessBase"]
[SourceQuality "1"]
[TimeControl "5400+30"]

1. d4 {[%emt 0:00:00]} Nf6 {[%emt 0:00:00]} 2. c4 {[%emt 0:00:12]} g6 {[%emt 0:00:00]} 3. g3 {[%emt 0:00:57]} d5 {[%emt 0:00:55]} 4. Nf3 {[%emt 0:00:31]} Bg7 {[%emt 0:00:30]} 5. Bg2 {[%emt 0:00:17]} O-O {[%emt 0:00:16]} 6. Nc3 {[%emt 0:00:15]} dxc4 {[%emt 0:00:43]} 7. Ne5 {[%emt 0:01:05]} c6 {[%emt 0:01:01]} 8. Nxc4 {[%emt 0:00:44]} Be6 {[%emt 0:00:48]} 9. Ne5 {[%emt 0:08:07]} Nbd7 {[%emt 0:02:20]} 10. Nf3 {[%emt 0:02:12]} Nd5 {[%emt 0:02:25]} 11. O-O {[%emt 0:03:48]} N7f6 {[%emt 0:02:31]} 12. Ng5 {[%emt 0:03:47]} Bd7 {[%emt 0:03:05]} 13. Nge4 {[%emt 0:06:04]} Nxe4 {[%emt 0:05:46]} 14. Nxe4 {[%emt 0:01:13]} Qb6 {[%emt 0:02:28]} 15. Nc5 {[%emt 0:02:03]} Bc8 {[%emt 0:01:44]} 16. e4 {[%emt 0:04:26]} Nc7 {[%emt 0:02:55]} 17. Nb3 {[%emt 0:16:07]} Be6 {[%emt 0:09:44]} 18. Be3 {[%emt 0:14:07]} Bxb3 {[%emt 0:06:08]} 19. axb3 {[%emt 0:01:12]} Rfd8 {[%emt 0:02:19]} 20. d5 {[%emt 0:02:25]} Qb5 {[%emt 0:03:55]} 21. Qc2 {[%emt 0:01:03]} Rac8 {[%emt 0:06:09]} 22. Bh3 {[%emt 0:03:53]} e6 {[%emt 0:05:36]} 23. dxe6 {[%emt 0:00:29]} Nxe6 {[%emt 0:00:16]} 24. Rxa7 {[%emt 0:00:31]} Ra8 {[%emt 0:01:42]} 25. Bxe6 {[%emt 0:04:24]} fxe6 {[%emt 0:00:03]} 26. Rxa8 {[%emt 0:01:51]} Rxa8 {[%emt 0:00:02]} 27. Rd1 {[%emt 0:00:23]} Bf6 {[%emt 0:06:05]} 28. h4 {[%emt 0:03:31]} Qh5 {[%emt 0:03:51]} 29. Kg2 {[%emt 0:04:02]} Ra2 {[%emt 0:04:10]} 30. Bd4 {[%emt 0:00:41]} e5 {[%emt 0:02:04]} 31. Bc5 {[%emt 0:03:39]} b5 {[%emt 0:05:00]} 32. Rd6 {[%emt 0:01:35]} Bxh4 {[%emt 0:04:10]} 33. b4 {[%emt 0:03:04]} Ra8 {[%emt 0:05:59]} 34. Qb3+ {[%emt 0:00:09]} Kh8 {[%emt 0:00:45]} 35. gxh4 {[%emt 0:03:35]} Qg4+ {[%emt 0:00:27]} 36. Qg3 {[%emt 0:00:05]} Qxe4+ {[%emt 0:00:17]} 37. Qf3 {[%emt 0:00:15]} Qxh4 {[%emt 0:00:33]} 38. Qf6+ {[%emt 0:00:54]} Qxf6 {[%emt 0:00:04]} 39. Rxf6 {[%emt 0:00:08]} Rc8 {[%emt 0:01:36]} 40. Re6 {[%emt 0:00:18]} Kg7 {[%emt 0:00:59]} 41. Rxe5 {[%emt 0:00:17]} h5 {[%emt 0:00:24]} 42. Kg3 {[%emt 0:00:55]} Kf6 {[%emt 0:01:13]} 43. Bd4 {[%emt 0:00:36]} Rd8 {[%emt 0:01:34]} 44. Rd5+ {[%emt 0:01:23]} 1-0